fUST/lending_fUST_20250928
["ID","MTS","AMOUNT","RATE_DAILY","PERIOD"]
[388305138,1759068648356,-480.0,0.00035616,9]
[388305139,1759068648365,-480.0,0.00035616,9]
[388305140,1759068648374,-704.86,0.00035616,9]
[388305141,1759068648383,-480.0,0.00035616,9]
[388305142,1759068648393,-480.0,0.00035616,9]
[388305143,1759068648403,-10297.24,0.00035616,9]
[388305144,1759068648412,-519.61,0.00035616,9]
[388305145,1759068648421,-480.0,0.00035616,9]
[388305146,1759068648430,-867.04,0.00035616,9]
[388305147,1759068648440,-500.0,0.00035673,5]
[388305148,1759068648449,-500.0,0.00035673,2]
[388305149,1759068648459,-500.0,0.00035673,5]
[388305150,1759068648468,-500.0,0.00035673,5]
[388305151,1759068648477,-500.0,0.00035673,5]
[388305152,1759068648486,-500.0,0.00035673,5]
[388305153,1759068648496,-500.0,0.00035673,5]
[388305154,1759068648505,-500.0,0.00035673,5]
[388305155,1759068648515,-500.0,0.00035673,5]
[388305156,1759068648524,-500.0,0.00035673,5]
[388305157,1759068648534,-500.0,0.00035673,5]
[388305158,1759068648544,-500.0,0.00035673,5]
[388305159,1759068648555,-150.0,0.00035673,5]
[388305160,1759068648565,-500.0,0.00035673,5]
[388305161,1759068648574,-250.0,0.000357,14]
[388305162,1759068648584,-1581.78,0.000357,14]
[388305163,1759068648598,-1071.87342596,0.00035741,2]
[388305164,1759068648607,-500.0,0.00035762,2]
[388305165,1759068648616,-500.0,0.00035762,2]
[388305166,1759068648626,-151.0,0.00035762,2]
[388305167,1759068648635,-2000.0,0.000358,16]
[388305168,1759068648645,-380.0,0.00035833,2]
[388305169,1759068648654,-1642.28741279,0.00035834,2]
[388305170,1759068648664,-256.0,0.00035837,2]
[388305171,1759068648673,-168.0,0.00035849,2]
[388305172,1759068648683,-1407.76,0.0003585,3]
[388305173,1759068648693,-703.88,0.0003585,3]
[388305174,1759068648701,-351.94,0.0003585,3]
[388305175,1759068648710,-380.0,0.00035867,2]
[388305176,1759068648720,-529.59004908,0.00035873,5]
[388305177,1759068648729,-500.0,0.00035873,2]
[388305178,1759068648738,-500.0,0.00035873,5]
[388305179,1759068648747,-500.0,0.00035873,5]
[388305180,1759068648756,-559.09040143,0.00035873,5]
[388305181,1759068648765,-500.0,0.00035873,5]
[388305182,1759068648775,-500.0,0.00035873,5]
[388305183,1759068648783,-500.0,0.00035873,5]
[388305184,1759068648792,-400.0,0.00035873,5]
[388305185,1759068648801,-500.0,0.00035873,5]
[388305186,1759068648810,-500.0,0.00035873,5]
[388305187,1759068648819,-500.0,0.00035873,5]
[388305188,1759068648828,-500.0,0.00035873,5]
[388305189,1759068648837,-500.0,0.00035873,5]
[388305190,1759068648846,-500.0,0.00035873,5]
[388305191,1759068648856,-500.0,0.00035873,5]
[388305192,1759068648866,-500.0,0.00035873,5]
[388305193,1759068648876,-500.0,0.00035873,5]
[388305194,1759068648895,-500.0,0.00035873,5]
[388305195,1759068648906,-532.24,0.0003589,9]
[388305196,1759068648916,-480.0,0.0003589,9]
[388305197,1759068648925,-480.0,0.0003589,9]
[388305198,1759068648935,-350.34634242,0.0003589,9]
[388305199,1759068648945,-480.0,0.0003589,9]
[388305200,1759068648954,-494.45,0.0003589,9]
[388305201,1759068648964,-1111.76,0.0003589,9]
[388305202,1759068648974,-480.0,0.0003589,9]
[388305203,1759068648984,-480.0,0.0003589,9]
[388305204,1759068648993,-480.0,0.0003589,9]
[388305205,1759068649003,-480.0,0.0003589,9]
[388305206,1759068649013,-480.0,0.0003589,9]
[388305207,1759068649024,-480.0,0.0003589,9]
[388305208,1759068649034,-1058.1,0.0003589,9]
[388305209,1759068649043,-480.0,0.0003589,9]
[388305210,1759068649054,-480.0,0.0003589,9]
[388305211,1759068649065,-480.0,0.0003589,9]
[388305212,1759068649075,-480.0,0.0003589,9]
[388305213,1759068649084,-480.0,0.0003589,9]
[388305214,1759068649094,-480.0,0.0003589,9]
[388305215,1759068649104,-480.0,0.0003589,9]
[388305216,1759068649113,-480.0,0.0003589,9]
[388305217,1759068649122,-697.47,0.0003589,9]
[388305218,1759068649132,-480.0,0.0003589,9]
[388305219,1759068649142,-480.0,0.0003589,9]
[388305220,1759068649152,-480.0,0.0003589,9]
[388305221,1759068649162,-480.0,0.0003589,9]
[388305222,1759068649172,-480.0,0.0003589,9]
[388305223,1759068649183,-741.99,0.0003589,9]
[388305224,1759068649193,-480.0,0.0003589,9]
[388305225,1759068649203,-822.6,0.0003589,9]
[388305226,1759068649212,-480.0,0.0003589,9]
[388305227,1759068649223,-480.0,0.0003589,9]
[388305228,1759068649233,-1051.22,0.0003589,9]
[388305229,1759068649243,-1485.76,0.0003589,9]
[388305230,1759068649252,-480.0,0.0003589,9]
[388305231,1759068649263,-480.0,0.0003589,9]
[388305232,1759068649272,-480.0,0.0003589,9]
[388305233,1759068649282,-480.0,0.0003589,9]
[388305234,1759068649291,-480.0,0.0003589,9]
[388305235,1759068649302,-480.0,0.0003589,9]
[388305236,1759068649312,-895.12,0.0003589,9]
[388305237,1759068649322,-480.0,0.0003589,9]
[388305238,1759068649332,-935.48,0.0003589,9]
[388305239,1759068649342,-480.0,0.0003589,9]
[388305240,1759068649351,-480.0,0.0003589,9]
[388305241,1759068649361,-679.79,0.0003589,9]
[388305242,1759068649371,-480.0,0.0003589,9]
[388305243,1759068649381,-480.0,0.0003589,9]
[388305244,1759068649390,-480.0,0.0003589,9]
[388305245,1759068649400,-480.0,0.0003589,9]
[388305246,1759068649410,-480.0,0.0003589,9]
[388305247,1759068649420,-555.42,0.0003589,9]
[388305248,1759068649429,-1095.61,0.0003589,9]
[388305249,1759068649439,-894.02,0.0003589,9]
[388305250,1759068649448,-480.0,0.0003589,9]
[388305251,1759068649457,-807.63,0.0003589,9]
[388305252,1759068649467,-480.0,0.0003589,9]
[388305253,1759068649476,-1264.54,0.0003589,9]
[388305254,1759068649486,-480.0,0.0003589,9]
[388305255,1759068649495,-480.0,0.0003589,9]
[388305256,1759068649505,-628.23,0.0003589,9]
[388305257,1759068649518,-1369.84,0.0003589,9]
[388305258,1759068649528,-480.0,0.0003589,9]
[388305259,1759068649538,-480.0,0.0003589,9]
[388305260,1759068649548,-695.93,0.0003589,9]
[388305261,1759068649559,-937.44,0.0003589,9]
[388305262,1759068649569,-480.0,0.0003589,9]
[388305263,1759068649579,-480.0,0.0003589,9]
[388305264,1759068649593,-480.0,0.0003589,9]
[388305265,1759068649603,-480.0,0.0003589,9]
[388305266,1759068649612,-1029.98,0.0003589,9]
[388305267,1759068649622,-480.0,0.0003589,9]
[388305268,1759068649633,-480.0,0.0003589,9]
[388305269,1759068649643,-479.6667624,0.0003589,2]
[388305270,1759068649653,-480.0,0.0003589,9]
[388305271,1759068649663,-480.0,0.0003589,9]
[388305272,1759068649675,-177.18303173,0.0003589,9]
[388305273,1759068649685,-480.0,0.0003589,9]
[388305274,1759068649695,-588.86,0.0003589,9]
[388305275,1759068649705,-480.0,0.0003589,9]
[388305276,1759068649715,-480.0,0.0003589,9]
[388305277,1759068649725,-909.18,0.0003589,9]
[388305278,1759068649736,-755.1,0.0003589,9]
[388305279,1759068649746,-480.0,0.0003589,9]
[388305280,1759068649756,-480.0,0.0003589,9]
[388305281,1759068649766,-160.0,0.0003589,30]
[388305282,1759068649776,-480.0,0.0003589,9]
[388305283,1759068649786,-488.76,0.0003589,9]
[388305284,1759068649796,-480.0,0.0003589,9]
[388305285,1759068649806,-682.23,0.0003589,9]
[388305286,1759068649815,-296.07508972,0.0003589,9]
[388305287,1759068649825,-480.0,0.0003589,9]
[388305288,1759068649834,-480.0,0.0003589,9]
[388305289,1759068649844,-480.0,0.0003589,9]
[388305290,1759068649853,-480.0,0.0003589,7]
[388305291,1759068649863,-480.0,0.0003589,9]
[388305292,1759068649872,-480.0,0.0003589,9]
[388305293,1759068649881,-480.0,0.0003589,9]
[388305294,1759068649890,-929.27,0.0003589,9]
[388305295,1759068649900,-325.69683992,0.0003589,9]
[388305296,1759068649909,-481.31530449,0.0003589,9]
[388305297,1759068649919,-557.42,0.0003589,9]
[388305298,1759068649928,-480.0,0.0003589,9]
[388305299,1759068649937,-434.34576214,0.0003589,9]
[388305300,1759068649947,-482.78243199,0.0003589,9]
[388305301,1759068649956,-1236.66,0.0003589,9]
[388305302,1759068649966,-480.0,0.0003589,9]
[388305303,1759068649975,-952.91,0.0003589,9]
[388305304,1759068649987,-692.72,0.0003589,9]
[388305305,1759068649997,-480.0,0.0003589,9]
[388305306,1759068650006,-1826.96,0.0003589,9]
[388305307,1759068650016,-480.0,0.0003589,9]
[388305308,1759068650026,-520.0,0.0003589,3]
[388305309,1759068650036,-732.29,0.0003589,9]
[388305310,1759068650045,-480.0,0.0003589,9]
[388305311,1759068650055,-686.79,0.0003589,9]
[388305312,1759068650064,-480.0,0.0003589,9]
[388305313,1759068650073,-378.63337104,0.0003589,9]
[388305314,1759068650083,-480.0,0.0003589,9]
[388305315,1759068650092,-480.0,0.0003589,9]
[388305316,1759068650102,-480.0,0.0003589,9]
[388305317,1759068650112,-486.7,0.0003589,9]
[388305318,1759068650121,-480.0,0.0003589,9]
[388305319,1759068650131,-480.0,0.0003589,9]
[388305320,1759068650141,-480.0,0.0003589,9]
[388305321,1759068650150,-480.0,0.0003589,9]
[388305322,1759068650159,-480.0,0.0003589,9]
[388305323,1759068650169,-480.0,0.0003589,9]
[388305324,1759068650178,-480.0,0.0003589,9]
[388305325,1759068650187,-480.0,0.0003589,9]
[388305326,1759068650196,-753.55,0.0003589,9]
[388305327,1759068650205,-1094.08,0.0003589,9]
[388305328,1759068650214,-480.0,0.0003589,9]
[388305329,1759068650223,-480.0,0.0003589,9]
[388305330,1759068650233,-480.0,0.0003589,7]
[388305331,1759068650242,-790.51,0.0003589,9]
[388305332,1759068650251,-480.0,0.0003589,9]
[388305333,1759068650260,-922.3,0.0003589,9]
[388305334,1759068650270,-480.0,0.0003589,9]
[388305335,1759068650279,-484.46,0.0003589,9]
[388305336,1759068650289,-1023.9,0.0003589,9]
[388305337,1759068650298,-581.97458872,0.0003589,9]
[388305338,1759068650308,-481.33272863,0.0003589,9]
[388305339,1759068650317,-588.86,0.0003589,9]
[388305340,1759068650326,-480.0,0.0003589,9]
[388305341,1759068650335,-1137.49,0.0003589,9]
[388305342,1759068650344,-3664.67,0.0003589,9]
[388305343,1759068650353,-880.52,0.0003589,9]
[388305344,1759068650363,-480.0,0.0003589,9]
[388305345,1759068650372,-1004.71,0.0003589,9]
[388305346,1759068650381,-545.01,0.0003589,9]
[388305347,1759068650390,-666.41,0.0003589,9]
[388305348,1759068650399,-480.0,0.0003589,9]
[388305349,1759068650408,-480.0,0.0003589,9]
[388305350,1759068650417,-480.0,0.0003589,9]
[388305351,1759068650426,-977.1,0.0003589,9]
[388305352,1759068650436,-572.46,0.0003589,9]
[388305353,1759068650445,-480.0,0.0003589,9]
[388305354,1759068650454,-446.3053032,0.0003589,9]
[388305355,1759068650463,-480.0,0.0003589,9]
[388305356,1759068650473,-785.61,0.0003589,9]
[388305357,1759068650482,-480.0,0.0003589,9]
[388305358,1759068650491,-480.0,0.0003589,9]
[388305359,1759068650500,-518.90303747,0.0003589,9]
[388305360,1759068650509,-648.41,0.0003589,9]
[388305361,1759068650518,-480.0,0.0003589,9]
[388305362,1759068650527,-480.0,0.0003589,9]
[388305363,1759068650537,-928.28,0.0003589,9]
[388305364,1759068650548,-480.0,0.0003589,9]
[388305365,1759068650558,-853.18,0.0003589,9]
[388305366,1759068650567,-480.0,0.0003589,9]
[388305367,1759068650576,-480.0,0.0003589,9]
[388305368,1759068650589,-1241.38,0.0003589,9]
[388305369,1759068650600,-665.05,0.0003589,9]
[388305370,1759068650609,-552.11,0.0003589,9]
[388305371,1759068650618,-480.0,0.0003589,9]
[388305372,1759068650627,-480.0,0.0003589,9]
[388305373,1759068650636,-1103.08,0.0003589,9]
[388305374,1759068650645,-3083.2,0.0003589,9]
[388305375,1759068650655,-480.0,0.0003589,9]
[388305376,1759068650663,-564.29,0.0003589,9]
[388305377,1759068650672,-492.19592224,0.0003589,9]
[388305378,1759068650682,-480.0,0.0003589,9]
[388305379,1759068650691,-480.0,0.0003589,9]
[388305380,1759068650700,-1141.94,0.0003589,9]
[388305381,1759068650709,-480.0,0.0003589,9]
[388305382,1759068650718,-1000.0,0.0003589,9]
[388305383,1759068650727,-480.0,0.0003589,9]
[388305384,1759068650736,-1605.71,0.0003589,9]
[388305385,1759068650745,-480.0,0.0003589,9]
[388305386,1759068650755,-480.0,0.0003589,9]
[388305387,1759068650764,-480.0,0.0003589,9]
[388305388,1759068650773,-498.14,0.0003589,9]
[388305389,1759068650783,-566.36062208,0.0003589,9]
[388305390,1759068650792,-714.51,0.0003589,9]
[388305391,1759068650803,-1075.99,0.0003589,9]
[388305392,1759068650813,-1023.31,0.0003589,9]
[388305393,1759068650824,-480.0,0.0003589,9]
[388305394,1759068650833,-618.74,0.0003589,9]
[388305395,1759068650843,-480.0,0.0003589,9]
[388305396,1759068650853,-480.0,0.0003589,9]
[388305397,1759068650862,-480.0,0.0003589,9]
[388305398,1759068650872,-480.0,0.0003589,9]
[388305399,1759068650890,-481.52858739,0.0003589,9]
[388305400,1759068650904,-754.29,0.0003589,9]
[388305401,1759068650914,-480.0,0.0003589,9]
[388305402,1759068650923,-614.99637152,0.0003589,9]
[388305403,1759068650933,-480.0,0.0003589,9]
[388305404,1759068650943,-480.0,0.0003589,9]
[388305405,1759068650953,-845.64,0.0003589,9]
[388305406,1759068650962,-480.0,0.0003589,9]
[388305407,1759068650972,-975.02,0.0003589,9]
[388305408,1759068650981,-884.24,0.0003589,9]
[388305409,1759068650992,-368.33340586,0.0003589,9]
[388305410,1759068651002,-480.0,0.0003589,9]
[388305411,1759068651011,-637.7,0.0003589,9]
[388305412,1759068651021,-1118.16,0.0003589,9]
[388305413,1759068651030,-765.23,0.0003589,9]
[388305414,1759068651039,-480.0,0.0003589,9]
[388305415,1759068651049,-480.0,0.0003589,9]
[388305416,1759068651058,-596.33,0.0003589,9]
[388305417,1759068651068,-843.09,0.0003589,9]
[388305418,1759068651078,-914.5,0.0003589,9]
[388305419,1759068651087,-843.73,0.0003589,9]
[388305420,1759068651097,-979.56,0.0003589,9]
[388305421,1759068651106,-2040.62,0.0003589,9]
[388305422,1759068651116,-846.09,0.0003589,9]
[388305423,1759068651125,-480.0,0.0003589,9]
[388305424,1759068651135,-480.0,0.0003589,9]
[388305425,1759068651145,-1028.35,0.0003589,9]
[388305426,1759068651154,-480.0,0.0003589,9]
[388305427,1759068651164,-480.0,0.0003589,9]
[388305428,1759068651174,-1744.06,0.0003589,9]
[388305429,1759068651183,-655.99,0.0003589,9]
[388305430,1759068651193,-480.0,0.0003589,9]
[388305431,1759068651202,-1073.98,0.0003589,9]
[388305432,1759068651211,-209.71572738,0.0003589,9]
[388305433,1759068651222,-658.99,0.0003589,9]
[388305434,1759068651231,-480.0,0.0003589,9]
[388305435,1759068651240,-480.0,0.0003589,9]
[388305436,1759068651250,-282.47934986,0.0003589,9]
[388305437,1759068651259,-505.23823636,0.0003589,9]
[388305438,1759068651269,-480.0,0.0003589,9]
[388305439,1759068651279,-539.38,0.0003589,9]
[388305440,1759068651288,-480.0,0.0003589,9]
[388305441,1759068651299,-798.9,0.0003589,9]
[388305442,1759068651308,-480.0,0.0003589,9]
[388305443,1759068651317,-480.0,0.0003589,9]
[388305444,1759068651327,-868.96,0.0003589,9]
[388305445,1759068651336,-480.0,0.0003589,9]
[388305446,1759068651346,-827.3,0.0003589,9]
[388305447,1759068651356,-1065.4,0.0003589,9]
[388305448,1759068651366,-480.0,0.0003589,9]
[388305449,1759068651376,-2146.47,0.0003589,9]
[388305450,1759068651386,-480.0,0.0003589,9]
[388305451,1759068651396,-855.97,0.0003589,9]
[388305452,1759068651406,-481.42307386,0.0003589,9]
[388305453,1759068651416,-480.0,0.0003589,9]
[388305454,1759068651426,-480.0,0.0003589,9]
[388305455,1759068651436,-480.0,0.0003589,9]
[388305456,1759068651446,-480.0,0.0003589,9]
[388305457,1759068651456,-1005.89,0.0003589,9]
[388305458,1759068651465,-597.94,0.0003589,9]
[388305459,1759068651475,-480.0,0.0003589,9]
[388305460,1759068651484,-480.0,0.0003589,9]
[388305461,1759068651493,-480.0,0.0003589,9]
[388305462,1759068651503,-492.57,0.0003589,9]
[388305463,1759068651512,-480.0,0.0003589,9]
[388305464,1759068651523,-1151.05,0.0003589,9]
[388305465,1759068651534,-480.0,0.0003589,9]
[388305466,1759068651543,-1081.31,0.0003589,9]
[388305467,1759068651553,-480.0,0.0003589,9]
[388305468,1759068651562,-480.0,0.0003589,9]
[388305469,1759068651571,-480.0,0.0003589,9]
[388305470,1759068651821,-480.0,0.0003589,9]
[388305471,1759068651831,-480.0,0.0003589,9]
[388305472,1759068651841,-480.0,0.0003589,9]
[388305473,1759068651851,-480.0,0.0003589,9]
[388305474,1759068651860,-1231.25,0.0003589,9]
[388305475,1759068651869,-480.78010155,0.0003589,9]
[388305476,1759068651878,-480.0,0.0003589,9]
[388305477,1759068651887,-480.0,0.0003589,7]
[388305478,1759068651896,-480.0,0.0003589,9]
[388305479,1759068651905,-644.83,0.0003589,9]
[388305480,1759068651914,-925.44,0.0003589,9]
[388305481,1759068651923,-480.0,0.0003589,9]
[388305482,1759068651932,-480.0,0.0003589,9]
[388305483,1759068651941,-480.0,0.0003589,9]
[388305484,1759068651950,-480.0,0.0003589,9]
[388305485,1759068651959,-151.0,0.0003589,30]
[388305486,1759068651968,-151.0,0.0003589,30]
[388305487,1759068651977,-1159.23,0.0003589,9]
[388305488,1759068651986,-4831.56,0.0003589,9]
[388305489,1759068651994,-480.0,0.0003589,9]
[388305490,1759068652003,-480.0,0.0003589,9]
[388305491,1759068652012,-500.0,0.0003589,9]
[388305492,1759068652022,-480.0,0.0003589,9]
[388305493,1759068652031,-535.63,0.0003589,9]
[388305494,1759068652040,-1182.78,0.0003589,9]
[388305495,1759068652050,-480.0,0.0003589,9]
[388305496,1759068652060,-480.0,0.0003589,9]
[388305497,1759068652069,-480.0,0.0003589,9]
[388305498,1759068652079,-480.0,0.0003589,9]
[388305499,1759068652089,-480.0,0.0003589,9]
[388305500,1759068652098,-524.55,0.0003589,9]
[388305501,1759068652108,-585.91,0.0003589,9]
[388305502,1759068652116,-641.51,0.0003589,9]
[388305503,1759068652126,-480.0,0.0003589,9]
[388305504,1759068652135,-480.0,0.0003589,9]
[388305505,1759068652144,-480.0,0.0003589,9]
[388305506,1759068652153,-240.4,0.0003589,9]
[388305507,1759068652162,-1101.93,0.0003589,9]
[388305508,1759068652172,-480.0,0.0003589,9]
[388305509,1759068652181,-897.92,0.0003589,9]
[388305510,1759068652190,-480.0,0.0003589,9]
[388305511,1759068652199,-480.0,0.0003589,9]
[388305512,1759068652208,-480.0,0.0003589,9]
[388305513,1759068652217,-480.0,0.0003589,9]
[388305514,1759068652226,-890.13,0.0003589,9]
[388305515,1759068652235,-3211.64,0.0003589,9]
[388305516,1759068652244,-480.0,0.0003589,9]
[388305517,1759068652253,-881.9,0.0003589,9]
[388305518,1759068652262,-155.73706229,0.0003589,9]
[388305519,1759068652271,-480.0,0.0003589,9]
[388305520,1759068652280,-480.0,0.0003589,9]
[388305521,1759068652290,-496.99194979,0.0003589,9]
[388305522,1759068652299,-515.24082708,0.0003589,9]
[388305523,1759068652309,-752.47,0.0003589,9]
[388305524,1759068652318,-480.0,0.0003589,9]
[388305525,1759068652327,-2089.22,0.0003589,9]
[388305526,1759068652336,-480.0,0.0003589,9]
[388305527,1759068652345,-908.25,0.0003589,9]
[388305528,1759068652354,-972.07,0.0003589,9]
[388305529,1759068652363,-18376.28,0.0003589,9]
[388305530,1759068652372,-480.0,0.0003589,9]
[388305531,1759068652381,-480.0,0.0003589,9]
[388305532,1759068652392,-480.0,0.0003589,9]
[388305533,1759068652401,-504.46,0.0003589,9]
[388305534,1759068652410,-895.65,0.0003589,9]
[388305535,1759068652419,-1810.76,0.0003589,9]
[388305536,1759068652428,-480.0,0.0003589,9]
[388305537,1759068652437,-480.0,0.0003589,9]
[388305538,1759068652447,-615.32,0.0003589,9]
[388305539,1759068652456,-913.52,0.0003589,9]
[388305540,1759068652464,-480.0,0.0003589,9]
[388305541,1759068652473,-480.0,0.0003589,9]
[388305542,1759068652482,-1069.24,0.0003589,9]
[388305543,1759068652491,-480.0,0.0003589,9]
[388305544,1759068652501,-575.56,0.0003589,9]
[388305545,1759068652511,-480.0,0.0003589,9]
[388305546,1759068652520,-1178.53,0.0003589,9]
[388305547,1759068652529,-1129.25,0.0003589,9]
[388305548,1759068652539,-480.0,0.0003589,9]
[388305549,1759068652548,-480.0,0.0003589,9]
[388305550,1759068652557,-1632.84,0.0003589,9]
[388305551,1759068652567,-545.66,0.0003589,9]
[388305552,1759068652576,-480.0,0.0003589,9]
[388305553,1759068652586,-480.0,0.0003589,9]
[388305554,1759068652595,-480.0,0.0003589,9]
[388305555,1759068652605,-480.0,0.0003589,9]
[388305556,1759068652618,-250.88414255,0.0003589,9]
[388305557,1759068652627,-480.0,0.0003589,9]
[388305558,1759068652636,-480.0,0.0003589,9]
[388305559,1759068652646,-1000.65,0.0003589,9]
[388305560,1759068652656,-480.0,0.0003589,9]
[388305561,1759068652665,-500.0,0.0003589,9]
[388305562,1759068652675,-810.47,0.0003589,9]
[388305563,1759068652684,-480.0,0.0003589,9]
[388305564,1759068652694,-480.0,0.0003589,9]
[388305565,1759068652704,-633.61,0.0003589,9]
[388305566,1759068652714,-559.58,0.0003589,9]
[388305567,1759068652724,-480.0,0.0003589,9]
[388305568,1759068652734,-2221.01,0.0003589,9]
[388305569,1759068652743,-1736.84,0.0003589,9]
[388305570,1759068652753,-902.59,0.0003589,9]
[388305571,1759068652762,-480.0,0.0003589,9]
[388305572,1759068652771,-4334.24,0.0003589,9]
[388305573,1759068652780,-480.0,0.0003589,9]
[388305574,1759068652790,-480.0,0.0003589,9]
[388305575,1759068652799,-950.0,0.0003589,9]
[388305576,1759068652809,-480.0,0.0003589,9]
[388305577,1759068652819,-480.0,0.0003589,9]
[388305578,1759068652828,-480.0,0.0003589,9]
[388305579,1759068652838,-900.91,0.0003589,9]
[388305580,1759068652847,-480.0,0.0003589,9]
[388305581,1759068652857,-480.0,0.0003589,9]
[388305582,1759068652867,-480.0,0.0003589,9]
[388305583,1759068652876,-480.0,0.0003589,9]
[388305584,1759068652886,-480.0,0.0003589,9]
[388305585,1759068652895,-592.75,0.0003589,9]
[388305586,1759068652904,-480.0,0.0003589,9]
[388305587,1759068652913,-908.6,0.0003589,9]
[388305588,1759068652922,-578.44,0.0003589,9]
[388305589,1759068652931,-480.0,0.0003589,9]
[388305590,1759068652940,-496.12927901,0.0003589,9]
[388305591,1759068652949,-480.0,0.0003589,9]
[388305592,1759068652959,-480.0,0.0003589,9]
[388305593,1759068652968,-480.0,0.0003589,9]
[388305594,1759068652977,-1015.55,0.0003589,9]
[388305595,1759068652987,-480.0,0.0003589,9]
[388305596,1759068652995,-480.0,0.0003589,9]
[388305597,1759068653005,-480.0,0.0003589,9]
[388305598,1759068653014,-617.62,0.0003589,9]
[388305599,1759068653023,-781.98,0.0003589,9]
[388305600,1759068653032,-1425.07,0.0003589,9]
[388305601,1759068653041,-544.27,0.0003589,9]
[388305602,1759068653050,-480.0,0.0003589,9]
[388305603,1759068653061,-480.0,0.0003589,9]
[388305604,1759068653070,-2525.32,0.0003589,9]
[388305605,1759068653079,-480.0,0.0003589,9]
[388305606,1759068653088,-480.0,0.0003589,9]
[388305607,1759068653098,-3612.7,0.0003589,9]
[388305608,1759068653107,-480.0,0.0003589,9]
[388305609,1759068653117,-1795.28,0.0003589,9]
[388305610,1759068653127,-591.42,0.0003589,9]
[388305611,1759068653137,-2166.38,0.0003589,9]
[388305612,1759068653146,-880.11,0.0003589,9]
[388305613,1759068653155,-593.05,0.0003589,9]
[388305614,1759068653164,-447.55007501,0.0003589,9]
[388305615,1759068653173,-1360.5,0.0003589,9]
[388305616,1759068653183,-781.78,0.0003589,9]
[388305617,1759068653192,-480.0,0.0003589,9]
[388305618,1759068653202,-480.0,0.0003589,9]
[388305619,1759068653211,-480.0,0.0003589,9]
[388305620,1759068653220,-480.0,0.0003589,9]
[388305621,1759068653229,-480.0,0.0003589,9]
[388305622,1759068653239,-480.0,0.0003589,9]
[388305623,1759068653248,-994.78,0.0003589,9]
[388305624,1759068653257,-480.0,0.0003589,9]
[388305625,1759068653266,-203.47611971,0.0003589,9]
[388305626,1759068653276,-7456.44,0.0003589,3]
[388305627,1759068653285,-1064.57,0.0003589,9]
[388305628,1759068653294,-514.13,0.0003589,9]
[388305629,1759068653304,-776.16,0.0003589,9]
[388305630,1759068653313,-480.0,0.0003589,9]
[388305631,1759068653322,-767.26,0.0003589,9]
[388305632,1759068653332,-2844.2,0.0003589,9]
[388305633,1759068653342,-480.0,0.0003589,9]
[388305634,1759068653351,-932.54,0.0003589,9]
[388305635,1759068653361,-1149.59,0.0003589,9]
[388305636,1759068653370,-847.08,0.0003589,9]
[388305637,1759068653380,-1150.88,0.0003589,9]